Cogmind - Beta 16 @@@ ROGUE MODE // 2025.11.16 @ 12:27:50 Player: shapeshifter Result: Destroyed by AT-AO7(z) with Zionite Laser-S Performance ------------- Evolutions (4) 2000 Regions Visited (8) 1600 Robots Destroyed (6) 30 Value Destroyed (162) 162 Prototype IDs (11) 220 Alien Tech Used (0) 0 Bonus (1424) 1424 TOTAL SCORE: 5436 Bonus ------- Pacifist 364 Registered with UFD 300 Met Optimus in HQ 500 Met Imprinter 300 Friendly Fire -40 Cogmind --------- Core Integrity 0/850 Matter 300/300 Energy 99/100 System Corruption 0% Temperature Cool (9) Movement Core (50) Location -6/Deep Caves Parts ------- > --- POWER (2) -------- (None) > --- PROPULSION (5) --- (None) > --- UTILITY (6) ------ Surveybot 24 Chip > --- WEAPON (2) ------- (None) > --- INVENTORY (5) ---- Hacking Drone Bay (1/1) Improved Grenade Launcher System Spiker (5) LU-1G1's Laser Shovel Peak State ------------ > --- POWER ------------ Antimatter Reactor > --- PROPULSION ------- (None) > --- UTILITY ---------- Surveybot 24 Chip > --- WEAPON ----------- Neutron Cannon > --- INVENTORY -------- Hacking Drone Bay Improved Grenade Launcher System Spiker LU-1G1's Laser Shovel [Rating: 24] Favorites ----------- Power Antimatter Reactor Reactor Antimatter Reactor Propulsion Cesium-ion Thruster Hover Unit Airjet Flight Unit Cesium-ion Thruster Utility Reaction Control System Device Reaction Control System Processor Surveybot 24 Chip Weapon Power Maul Energy Cannon Phase Cannon Launcher Mini Grenade Launcher Special Weapon LU-1G1's Laser Shovel Impact Weapon Power Maul Slashing Weapon Makeshift Sword Build | -11 -10 -10 -8 -6 -6 -6 -6 -6 ------- Run | Yrd Mat Sub Scr Fac Low Low Zio Dee Slots Evolved 8 | . . . . 8 . . . . Power 1 | . . . . 1 . . . . Propulsion 3 | . . . . 3 . . . . Utility 4 | . . . . 4 . . . . Weapon . | . . . . . . . . . Parts Attached 21 | . . . 8 . 2 4 2 5 Power 1 | . . . . . . . . 1 Engine . | . . . . . . . . . Core . | . . . . . . . . . Reactor 1 | . . . . . . . . 1 Propulsion 4 | . . . 2 . 1 1 . . Treads . | . . . . . . . . . Leg . | . . . . . . . . . Wheel . | . . . . . . . . . Hover 2 | . . . 1 . . 1 . . Flight 2 | . . . 1 . 1 . . . Utility 7 | . . . 3 . . 1 1 2 Device 5 | . . . 3 . . . 1 1 Storage . | . . . . . . . . . Processor 2 | . . . . . . 1 . 1 Hackware . | . . . . . . . . . Protection . | . . . . . . . . . Artifact . | . . . . . . . . . Weapon 9 | . . . 3 . 1 2 1 2 Energy Gun . | . . . . . . . . . Energy Cannon 2 | . . . . . . . 1 1 Ballistic Gun . | . . . . . . . . . Ballistic Cannon . | . . . . . . . . . Launcher 1 | . . . . . 1 . . . Special Weapon 2 | . . . 1 . . . . 1 Impact Weapon 3 | . . . 2 . . 1 . . Slashing Weapon 1 | . . . . . . 1 . . Piercing Weapon . | . . . . . . . . . Special Melee Weapon . | . . . . . . . . . Unidentified Prototypes 4 | . . . 1 . 1 . 1 1 Parts Lost 3 | . . . . . 2 . . 1 Power . | . . . . . . . . . Propulsion 1 | . . . . . 1 . . . Utility . | . . . . . . . . . Weapon 2 | . . . . . 1 . . 1 Highest Loss Streak 1 | . . . . . 1 . . 1 To Critical Strikes . | . . . . . . . . . Average Backups 3 | . . . 3 4 4 4 4 4 Power . | . . . . 1 . . . . Propulsion . | . . . . . . . . . Utility . | . . . 1 . . 1 . 1 Weapon 1 | . . . . 1 1 1 2 1 Tool/Special . | . . . . . . . . . Unused Backups 16 | . . . 9 1 1 2 2 1 Power 3 | . . . 2 1 . . . . Propulsion 2 | . . . . . 1 . 1 . Utility 6 | . . . 4 . . 1 1 . Weapon 3 | . . . 1 . . 1 . 1 Tool/Special 2 | . . . 2 . . . . . Average Slot Usage (%) 19 | . . . 41 4 4 13 . 5 Hover 3 | . . . 7 . . 4 . . Flight 4 | . . . 10 4 2 . . . Device 5 | . . . 12 . . . . . Impact Weapon 4 | . . . 9 . . 2 . . Peak Build Rating 24 | . . . 19 6 14 17 11 24 Average Rating 6 | . . . 10 4 5 11 2 9 On Entrance 1 | . . . . 2 3 2 2 3 Avg Prop Armor Cover (%) 14 | . . . 11 . . 21 . . Naked Turns 1188 | . 35 245 226 10 36 18 554 64 Heaviest Build 9 | . . . 5 . 3 2 3 9 Greatest Support 8 | 3 3 3 8 5 6 3 3 3 Greatest Overweight (x) 2 | . . . . . . . . 2 Average Overweight (x) . | . . . . . . . . . Largest Inventory Capacity 5 | 5 5 5 5 5 5 5 5 5 Average Capacity 5 | 5 5 5 5 5 5 5 5 5 Most Carried 5 | . . . 5 5 5 5 5 5 Average Carried 3 | . . . 3 4 4 4 4 4 Final Capacity 5 | 5 5 5 5 5 5 5 5 5 Final Carried 5 | . . . 5 5 4 5 5 4 Class Distribution -------------------- 100% | Mutant Dominant Class ---------------- Mutant | -10/Materials Mutant | -10/Subcaves Mutant | -8/Scraptown Mutant | -6/Factory Mutant | -6/Lower Caves Mutant | -6/Lower Caves Mutant | -6/Zion Mutant | -6/Deep Caves Resources | -11 -10 -10 -8 -6 -6 -6 -6 -6 ----------- Run | Yrd Mat Sub Scr Fac Low Low Zio Dee Matter Collected 535 | 186 . 14 80 . 40 100 30 85 Remotely . | . . . . . . . . . Salvage Created 77 | . . . . . 62 . . 15 Parts 6 | . . . . . 6 . . . Haulers Intercepted . | . . . . . . . . . Recyclers Shooed . | . . . . . . . . . Parts Field Recycled . | . . . . . . . . . Retrieved Matter . | . . . . . . . . . Parts Self-Destructed 6 | . . 1 . . 5 . . . Prevented . | . . . . . . . . . Parts Restored . | . . . . . . . . . Kills | -11 -10 -10 -8 -6 -6 -6 -6 -6 ------- Run | Yrd Mat Sub Scr Fac Low Low Zio Dee Combat Hostiles Destroyed 6 | . . . . . 6 . . . AOE 6 | . . . . . 6 . . . Classes Destroyed 2 | . . . . . 2 . . . Swarmer 6 | . . . . . 6 . . . Decomposer 1 | . . . . . 1 . . . Best Kill Streak 6 | . . . . . 6 . . . Combat Bots Only 6 | . . . . . 6 . . . Max Kills in Single Turn 2 | . . . . . 2 . . . Gunslinging . | . . . . . . . . . Exploded 2 | . . . . . 2 . . . Melee . | . . . . . . . . . Uniques/NPCs Destroyed . | . . . . . . . . . Combat | -11 -10 -10 -8 -6 -6 -6 -6 -6 -------- Run | Yrd Mat Sub Scr Fac Low Low Zio Dee Hostile Shots Fired 93 | . . . . 23 38 . . 32 Missed 42 | . . . . 17 15 . . 10 Hits 51 | . . . . 6 23 . . 22 Melee 1 | . . . . . 1 . . . Projectile 50 | . . . . 6 22 . . 22 Damage Taken 1169 | . . . . 58 397 . . 714 Core 866 | . . . . 40 312 . . 514 Absorbed by Shields . | . . . . . . . . . Core Remaining (%) 100 | 100 . . 100 . . . . . Volleys Fired 15 | . . . . . 6 . . 9 Largest 1 | . . . . . 1 . . 1 Hottest 90 | . . . . . 30 . . 90 Shots Fired 15 | . . . . . 6 . . 9 Gun . | . . . . . . . . . Cannon 8 | . . . . . . . . 8 Launcher 6 | . . . . . 6 . . . Special 1 | . . . . . . . . 1 Kinetic . | . . . . . . . . . Thermal 8 | . . . . . . . . 8 Explosive 6 | . . . . . 6 . . . Electromagnetic . | . . . . . . . . . Robot Hit Streak 4 | . . . . . 4 . . 2 Robot Miss Streak 3 | . . . . . 1 . . 3 Penetration Max . | . . . . . . . . . Secondary Targets . | . . . . . . . . . Shots Hit Robots 8 | . . . . . 5 . . 3 Core Hits 13 | . . 1 . . 10 . . 2 Critical Kills . | . . . . . . . . . Critical Parts Destroyed . | . . . . . . . . . Critical Strikes . | . . . . . . . . . Melee Attacks 3 | . . . 2 . . . 1 . Impact 2 | . . . 2 . . . . . Slashing 1 | . . . . . . . 1 . Piercing . | . . . . . . . . . Sneak Attacks . | . . . . . . . . . Combat Hostiles . | . . . . . . . . . Follow-up Attacks . | . . . . . . . . . Damage Inflicted 554 | . . 1 . . 425 . . 128 Guns . | . . . . . . . . . Cannons 128 | . . . . . . . . 128 Explosions 425 | . . . . . 425 . . . Melee . | . . . . . . . . . Ramming 1 | . . 1 . . . . . . Kinetic . | . . . . . . . . . Thermal 128 | . . . . . . . . 128 Explosive 425 | . . . . . 425 . . . Electromagnetic . | . . . . . . . . . Impact . | . . . . . . . . . Slashing . | . . . . . . . . . Piercing . | . . . . . . . . . Highest Corruption . | . . . . . . . . . Average Corruption . | . . . . . . . . . Corruption Purged . | . . . . . . . . . Corruption Blocked . | . . . . . . . . . Overload Shots . | . . . . . . . . . Overflow Damage 7 | . . . . . . . . 7 Projectiles 7 | . . . . . . . . 7 Explosions . | . . . . . . . . . Melee . | . . . . . . . . . Knockbacks . | . . . . . . . . . Impact . | . . . . . . . . . Kinetic . | . . . . . . . . . Secondary . | . . . . . . . . . Self-Inflicted Damage . | . . . . . . . . . Shots . | . . . . . . . . . Rammed 1 | . . 1 . . . . . . Targets Rammed 1 | . . 1 . . . . . . Kicked . | . . . . . . . . . Crushed . | . . . . . . . . . Highest Temperature 156 | . . . . . . . . 156 Average Temperature 49 | . . . . . . . . 49 Received Heat Transfer 282 | . . . . 21 63 . . 198 Siege Activations . | . . . . . . . . . Martial Activations . | . . . . . . . . . Shielding Activations . | . . . . . . . . . Robots Disrupted . | . . . . . . . . . Combat Hostiles . | . . . . . . . . . Robots Corrupted . | . . . . . . . . . Combat Hostiles . | . . . . . . . . . Parts Fried . | . . . . . . . . . Impact Corruptions . | . . . . . . . . . Robots Melted . | . . . . . . . . . Combat Hostiles . | . . . . . . . . . Parts Melted . | . . . . . . . . . Heat Transferred 74 | . . . . . . . . 74 Parts Sabotaged . | . . . . . . . . . Parts Stolen . | . . . . . . . . . Parts Stripped . | . . . . . . . . . Power Chain Reactions . | . . . . . . . . . Alert | -11 -10 -10 -8 -6 -6 -6 -6 -6 ------- Run | Yrd Mat Sub Scr Fac Low Low Zio Dee Maximum Alert Level . | . . . . . . . . . Low Security (%) 100 | 100 100 . . 100 . . . . Level 1 . | . . . . . . . . . Level 2 . | . . . . . . . . . Level 3 . | . . . . . . . . . Level 4 . | . . . . . . . . . Level 5 . | . . . . . . . . . High Security . | . . . . . . . . . Max Security . | . . . . . . . . . Peak Influence 14 | . . . . 14 . . . . Initial . | . . . . . . . . . Average 1 | . . . . 2 . . . . Influence Increases 269 | . . . . 14 255 . . . Destroy 0b10 Robot/C 120 | . . . . . 120 . . . Successful Hack 14 | . . . . 14 . . . . Lose Combat Pursuer 135 | . . . . . 135 . . . Influence Decreases 269 | . . . . 14 60 98 97 . Entered New Map 135 | . . . . . . 38 97 . Time Decay 114 | . . . . 14 40 60 . . Lost Part 20 | . . . . . 20 . . . Squads Dispatched 1 | . . . . 1 . . . . Investigation 1 | . . . . 1 . . . . Extermination . | . . . . . . . . . Reinforcement . | . . . . . . . . . Assault . | . . . . . . . . . Garrison . | . . . . . . . . . Intercept . | . . . . . . . . . Searches Triggered . | . . . . . . . . . Construction Impeded . | . . . . . . . . . Haulers Reinforced . | . . . . . . . . . Active Scanning Responses . | . . . . . . . . . Cargo Convoy Interrupts . | . . . . . . . . . Stealth | -11 -10 -10 -8 -6 -6 -6 -6 -6 --------- Run | Yrd Mat Sub Scr Fac Low Low Zio Dee Distress Signals . | . . . . . . . . . Communications Jammed . | . . . . . . . . . Distress Signals . | . . . . . . . . . Times Spotted 33 | . . 1 . 7 15 . . 10 Peak Tracking Total 13 | . . 1 . 11 13 . . 4 Tactical Retreats 3 | . . . . . 2 . . 1 Traps | -11 -10 -10 -8 -6 -6 -6 -6 -6 ------- Run | Yrd Mat Sub Scr Fac Low Low Zio Dee Traps Triggered 1 | . . . . 1 . . . . Indirectly . | . . . . . . . . . Trap Hack Attempts . | . . . . . . . . . Triggered . | . . . . . . . . . Disarmed . | . . . . . . . . . Reprogrammed . | . . . . . . . . . Reused . | . . . . . . . . . Traps Extracted . | . . . . . . . . . Installed 1 | . . . 1 . . . . . Triggered . | . . . . . . . . . Most Traps Carried 1 | . . . 1 . . . . . Machines | -11 -10 -10 -8 -6 -6 -6 -6 -6 ---------- Run | Yrd Mat Sub Scr Fac Low Low Zio Dee Machines Disabled 5 | . . . 2 . . . 3 . Max in Single Turn 1 | . . . 1 . . . 1 . Machines Repaired . | . . . . . . . . . Machines Dismantled . | . . . . . . . . . Machines Sabotaged . | . . . . . . . . . Overloaded Fab Kills . | . . . . . . . . . Hacking | -11 -10 -10 -8 -6 -6 -6 -6 -6 --------- Run | Yrd Mat Sub Scr Fac Low Low Zio Dee Machines Accessed 6 | . . . 2 3 1 . . . Terminals 3 | . . . . 2 1 . . . Fabricators 1 | . . . . 1 . . . . Repair Stations . | . . . . . . . . . Recycling Units . | . . . . . . . . . Scanalyzers . | . . . . . . . . . Garrison Access . | . . . . . . . . . Total Hacks 13 | . . . 5 5 3 . . . Successful 10 | . . . 5 2 3 . . . Failed 3 | . . . . 3 . . . . Catastrophic 1 | . . . . 1 . . . . Database Lockouts . | . . . . . . . . . Manual 1 | . . . . . . . 1 . Terminals 7 | . . . . 4 3 . . . Fabricators 1 | . . . . 1 . . . . Repair Stations . | . . . . . . . . . Recycling Units . | . . . . . . . . . Scanalyzers . | . . . . . . . . . Garrison Access . | . . . . . . . . . Terminal Hacks 9 | . . . 5 1 3 . . . Record 7 | . . . 4 . 3 . . . Zone Layout 1 | . . . . 1 . . . . Proto ID Catalog 1 | . . . 1 . . . . . Fabricator Hacks 1 | . . . . 1 . . . . Network Status 1 | . . . . 1 . . . . Repair Station Hacks . | . . . . . . . . . Recycling Unit Hacks . | . . . . . . . . . Scanalyzer . | . . . . . . . . . Garrison Access Hacks . | . . . . . . . . . Unauthorized Hacks . | . . . . . . . . . Terminals . | . . . . . . . . . Fabricators . | . . . . . . . . . Repair Stations . | . . . . . . . . . Recycling Units . | . . . . . . . . . Scanalyzers . | . . . . . . . . . Garrison Access . | . . . . . . . . . Data Cores Recovered . | . . . . . . . . . Used . | . . . . . . . . . Hacking Detections 3 | . . . . 2 1 . . . Full Trace Events 1 | . . . . . 1 . . . Feedback Events . | . . . . . . . . . Feedback Blocked . | . . . . . . . . . Robot Schematics Acquired 2 | . . . . . . . 2 . Robots Built . | . . . . . . . . . Authchips . | . . . . . . . . . Time . | . . . . . . . . . Total Robot Build Rating . | . . . . . . . . . Part Schematics Acquired 16 | . . . . . . . 16 . Parts Built . | . . . . . . . . . Authchips . | . . . . . . . . . Time . | . . . . . . . . . Total Part Build Rating . | . . . . . . . . . Part Studies Acquired . | . . . . . . . . . Parts Repaired . | . . . . . . . . . Time . | . . . . . . . . . Parts Recycled . | . . . . . . . . . Recycled Matter . | . . . . . . . . . Retrieved Matter . | . . . . . . . . . Retrieved Components . | . . . . . . . . . Parts Scanalyzed . | . . . . . . . . . Part Schematics Acquired . | . . . . . . . . . Parts Damaged . | . . . . . . . . . Bothacking | -11 -10 -10 -8 -6 -6 -6 -6 -6 ------------ Run | Yrd Mat Sub Scr Fac Low Low Zio Dee Used RIF Installer . | . . . . . . . . . Robots Hacked . | . . . . . . . . . Non-combat . | . . . . . . . . . Combat . | . . . . . . . . . Robot Hacks Applied . | . . . . . . . . . Relay Couplers Released . | . . . . . . . . . Fabnet Peak Effective % . | . . . . . . . . . Robots Rewired . | . . . . . . . . . Allies Hacked . | . . . . . . . . . Hacks Repelled . | . . . . . . . . . Allies | -11 -10 -10 -8 -6 -6 -6 -6 -6 -------- Run | Yrd Mat Sub Scr Fac Low Low Zio Dee Total Allies 2 | . . . . . . . 2 . Largest Group 2 | . . . . . . . 2 2 Highest-Rated Group 192 | . . . . . . . 192 192 Highest-Rated Ally 96 | . . . . . . . 96 96 Total Orders . | . . . . . . . . . Ally Attacks 23 | . . . . . . . . 23 Total Damage 588 | . . . . . . . . 588 Kills 3 | . . . . . . . . 3 Allies Corrupted . | . . . . . . . . . Allies Melted 1 | . . . . . . . . 1 Intel | -11 -10 -10 -8 -6 -6 -6 -6 -6 ------- Run | Yrd Mat Sub Scr Fac Low Low Zio Dee Active Infowar (turns) 224 | . . . 138 . . 85 . 1 Optics 85 | . . . . . . 85 . . Sensors 138 | . . . 138 . . . . . Terrain 1 | . . . . . . . . 1 Robot Analysis Total . | . . . . . . . . . Derelict Logs Recovered 3 | . . . . . . 1 2 . Drone Launches . | . . . . . . . . . Drone Recoveries . | . . . . . . . . . Exploration | -11 -10 -10 -8 -6 -6 -6 -6 -6 ------------- Run | Yrd Mat Sub Scr Fac Low Low Zio Dee Turns Passed 2487 | 14 35 245 1070 51 157 128 569 218 Spaces Moved 3547 | 28 14 149 1472 126 307 218 976 257 Core 2255 | 28 14 149 445 19 149 218 976 257 Treads . | . . . . . . . . . Legs . | . . . . . . . . . Wheels . | . . . . . . . . . Hover 2 | . . . 2 . . . . . Flight 1290 | . . . 1025 107 158 . . . Fastest Speed 35 | 50 50 50 35 35 40 50 50 50 Average Speed 44 | 50 50 50 39 37 44 50 50 53 Slowest Speed 150 | 50 50 50 60 50 50 50 50 150 Overloaded Moves . | . . . . . . . . . Propulsion Burnouts . | . . . . . . . . . Robots Hopped 1 | . . . . . . . 1 . Potential Cave-ins . | . . . . . . . . . Cave-ins Triggered . | . . . . . . . . . Exploration Rate (%) 38 | 3 8 13 85 6 59 37 87 44 Regions Visited 8 Branch Regions 6 Pre-discovered Areas 2 | . . . . . . . 2 . Known Exits Taken 1 | . . . . . . . 1 . Unknown Exits Taken 7 | 1 1 1 1 1 1 1 . . Scrap Searched 21 | . . . 6 . 3 8 4 . Spaces Dug 13 | . . . 12 . 1 . . . Terrain Destroyed 47 | . . . 8 . 35 . . 4 Melee . | . . . . . . . . . Projectile 4 | . . . . . . . . 4 AOE 34 | . . . . . 34 . . . Terrain Rammed . | . . . . . . . . . Walls Destroyed . | . . . . . . . . . Machines Disabled . | . . . . . . . . . Actions | -11 -10 -10 -8 -6 -6 -6 -6 -6 --------- Run | Yrd Mat Sub Scr Fac Low Low Zio Dee Total 4428 | 27 41 318 1967 130 320 238 1057 330 Wait 761 | . 28 168 440 . 1 5 69 50 Move 3537 | 27 13 148 1471 125 306 217 973 257 Hop 1 | . . . . . . . 1 . Pick Up 32 | . . . 20 2 2 4 2 2 Fast Attach 9 | . . . 2 . . 4 1 2 Attach 20 | . . . 8 1 3 . 3 5 Detach 14 | . . . 6 . 1 1 4 2 Swap . | . . . . . . . . . Drop 33 | . . . 17 2 1 7 3 3 Fire 15 | . . . . . 6 . . 9 Melee 3 | . . . 2 . . . 1 . Ram 1 | . . 1 . . . . . . Kick . | . . . . . . . . . Crush . | . . . . . . . . . Escape Stasis . | . . . . . . . . . Rewire 1 | . . 1 . . . . . . Trap 1 | . . . 1 . . . . . Miscellaneous . | . . . . . . . . . Route ------- -11/Scrapyard -10/Materials -10/Subcaves -8/Scraptown (discovered 2 exits: *Fac x2) -6/Factory -6/Lower Caves -6/Lower Caves -6/Zion (discovered 2 exits: *Dee / [*Pro]) -6/Deep Caves History --------- Turn | Location | Event 5 | -11/Scrapyard | Discovered new exit (range 15) 15 | -11/Scrapyard | Entered Materials 16 | -10/Materials | Met a group of wandering Federalists 45 | -10/Materials | Discovered new exit (range 8) 50 | -10/Materials | Entered Subcaves 51 | -10/Subcaves | Continued accompanying wandering Federalists (6) 51 | -10/Subcaves | Approached by a straggling Scientist 280 | -10/Subcaves | Wandering Federalist uncovered a shortcut to Scraptown 295 | -10/Subcaves | Entered Scraptown 305 | -8/Scraptown | Build established: Mutant 315 | -8/Scraptown | Visited Spacefarers 319 | -8/Scraptown | Visited Awakened 325 | -8/Scraptown | Visited The Evicted 330 | -8/Scraptown | Visited UFD Registry 330 | -8/Scraptown | Registered with UFD as "Pyrochaser" 336 | -8/Scraptown | Visited Cave Peace 347 | -8/Scraptown | Visited Assassins FH 375 | -8/Scraptown | Visited DA-N13 Charitable Foundation 382 | -8/Scraptown | Visited Research Penetration Think Tank 392 | -8/Scraptown | Visited Abandonware Association 397 | -8/Scraptown | Learned abandonware demo "ERRANTS.EXE" 407 | -8/Scraptown | Visited Supply Room 414 | -8/Scraptown | Visited Junk Repository 433 | -8/Scraptown | Visited Junk Repository 449 | -8/Scraptown | Visited LU-1G1's Boring Crew 457 | -8/Scraptown | Visited Science Guys 501 | -8/Scraptown | Found DCF Scrap (29 items) 688 | -8/Scraptown | Discovered new exit (range 13) 704 | -8/Scraptown | Visited Red Mages 707 | -8/Scraptown | Visited SPCMW 814 | -8/Scraptown | Discovered new exit (range 3) 816 | -8/Scraptown | Warned about trapping Scraptown 927 | -8/Scraptown | Met Optimus 927 | -8/Scraptown | Accepted into 0bPrime 1327 | -8/Scraptown | Civil war broke out across Scraptown 1334 | -8/Scraptown | Found Prototype Special Weapon 1335 | -8/Scraptown | Identified LU-1G1's Laser Shovel 1342 | -8/Scraptown | Found System Spiker 1365 | -8/Scraptown | Entered Factory 1365 | -6/Factory | Evolved 8 slots: Power x1, Propulsion x3, Utility x4 1409 | -6/Factory | Discovered new exit (range 7) 1416 | -6/Factory | Entered Lower Caves 1480 | -6/Lower Caves | Learned Factory garrison access intel 1480 | -6/Lower Caves | Learned Extension emergency access door positions 1480 | -6/Lower Caves | Learned 8 Research zone layouts 1490 | -6/Lower Caves | Attracted the attention of an 0b10 base 1570 | -6/Lower Caves | Discovered new exit (range 3) 1573 | -6/Lower Caves | Entered another Lower Caves area 1630 | -6/Lower Caves | Learned Factory security intel 1631 | -6/Lower Caves | Encountered a Warlord checkpoint 1688 | -6/Lower Caves | Discovered new exit (range 18) 1701 | -6/Lower Caves | Entered Zion 1736 | -6/Zion | Discovered new exit (range 14) 1826 | -6/Zion | Identified exit to Deep Caves 1862 | -6/Zion | Learned Factory recycling unit intel 1873 | -6/Zion | Given the Hacking Drone Bay 1874 | -6/Zion | Found Prototype Device 1877 | -6/Zion | Identified Hacking Drone Bay 1923 | -6/Zion | Given A8's code to call for help 1936 | -6/Zion | Learned location of Extension (-6) 2006 | -6/Zion | Visited the Megawrench Repair Shop 2063 | -6/Zion | Turned away by Imprinter 2108 | -6/Zion | Enhanced Grunt warped into view, answering call for help 2110 | -6/Zion | Enhanced Grunt warped into view, answering call for help 2254 | -6/Zion | Saw the warning signs outside the Deep Caves entrance 2270 | -6/Zion | Entered Deep Caves 2270 | -6/Deep Caves | Accompanied by 2 allies 2335 | -6/Deep Caves | Found Surveybot 24 Scanner 2338 | -6/Deep Caves | Found Surveybot 24 Chip 2421 | -6/Deep Caves | Attacked by Z-Imprinter 2437 | -6/Deep Caves | Core integrity fell below 50% 2457 | -6/Deep Caves | Core integrity fell below 20% 2465 | -6/Deep Caves | Z-Facility disabled 2488 | -6/Deep Caves | Destroyed by AT-AO7(z) with Zionite Laser-S Last Messages --------------- I've worked too hard for our future just to have you ruin everything! 02430_ Enhanced Grunt destroyed. 02431_ Enhanced Grunt heat damages Adv. Heat Sink. 02433_ Acquired Prototype Energy Cannon. 02434_ Enhanced Grunt heat short circuits Adv. Heat Sink. 02434_ Enhanced Grunt critical meltdown. 02434_ Dropped Phase Cannon. 02436_ 9T-P45(z) slows to a halt. 02436_ UZ-DZS(z) slows to a halt. 02438_ Identified Neutron Cannon. 02439_ Destroyed Prototype Hover Unit. 02443_ Acquired Antimatter Reactor. 02449_ Neutron Cannon destroyed. 02451_ UZ-DZS(z) reactivates. 02451_ Dropped Antimatter Reactor. 02452_ Acquired 49 matter. 02465_ Z-Facility disabled. Map ----- +----------------------------------------------------+ | ?????????????????????????????????????? | | ????????????????????????????????????? | | ????????????????????????????????????? | | ????????????????????????????????????? | | ????????????????????????????????????? | | ???????????????????????????????????? | | ???????????????????????????????????? | | ???????????????????????????????????? | | ???????????????????????????????????? | | ??????????????????????????????????????" """""" | | ??????????????????????? ?????????????"""""" | | ????????????????????? ??????????""""""" | | ?????????????????? ??????""""""" | | ???????????????? "?????""""" | | ?????????????? ""????"""""""" | | ?????????????? ""?????""""""" | | ????????????? ""????"""""""" | | ????????????? """??""""""""" | | ????????????# """??"""" " " | | ????????????# ""??""""" | | ???????????? """?"""" | | ??????????? """?""""" | | ??????????? """?""""" | | ?????????? """??"""""" | | ???????????# """"?"""""""" | | ???????????# @ """""" | | ????????????# """""" """ | | ????????????# """""" """"" | | ????????????## """""" """"""" | | ?????????????# """"" """"""" | | ?????????????# """" """"""" | | ?????????????# """" """"" | | ????????????? """" """ | | ????????????? """" | | ????????????? """"""""""" | | ?????????????? """"""""" | | ?????????????? | | ???????????????? | | ????????????????? | | ?????????????????? | | ??????????????????? z | | ???????????????????? | | ????????????????????? | | ?????????????????????? ### "## # | | ?????????????????????????# #?## ## | | ?????????????????????????####???### #####? | | ??????????????????????????????????###########????? | | ?????????????????????????????????????????????????? | | | | | +----------------------------------------------------+ Best States ------------- Heat Dissipation 37 Energy Generation 21 Energy Capacity 325 Matter Stores 300 Matter Capacity 300 Sight Range 22 Robot Scan Range 15 Terrain Scan Density 2010 Evasion (%) 71 Item Schematics ----------------- Imp. Recalibrator | -6/Zion | Archive Focal Shield | -6/Zion | Archive Phase Gun | -6/Zion | Archive IFF Parser | -6/Zion | Archive Adv. Cooling System | -6/Zion | Archive Adv. Sensor Array | -6/Zion | Archive KE Penetrator | -6/Zion | Archive Hpw. Shock Rifle | -6/Zion | Archive Adv. Plasma Cannon | -6/Zion | Archive Imp. Target Analyzer | -6/Zion | Archive Railgun | -6/Zion | Archive Drone Bay | -6/Zion | Archive Lyr. Heavy Armor Plating | -6/Zion | Archive Hvy. Shock Bomb Launcher | -6/Zion | Archive Adv. Heat Sink | -6/Zion | Archive Lrn. Phase Cannon | -6/Zion | Archive Robot Schematics ------------------ A-15 Conveyor | -6/Zion | Archive E-15 Imp | -6/Zion | Archive Fabricated ------------ Nothing Repaired ---------- Nothing Studied --------- None Alien Tech Used ----------------- None Achievements -------------- None Challenges ------------ None Game ------ Seed AutogunThrowingCorpse Manual? 0 Play Time 00:36:04 Cumulative 508.3 hours Start 2025.11.15 @ 16:36:51 End 2025.11.16 @ 12:27:50 Sessions 2 Manual Loads 0 Difficulty Rogue Special Mode None Game No. 684 Rogue 684 Adventurer 0 Explorer 0 Win Type - Total 16 Types 8/0/2/2/1/0/2/1/0/0 Lore% 91 Gallery% 85 Achievement% 67 Wizard Run 0 Options --------- Layout 2 ASCII 0 Keyboard 0 Movement Mouse Keybinds 0 Fullscreen 1 Font 24/Terminus Map View 50x49 Zoom Use 0% Tactical HUD 1 Map Filters NONE Filters NONE Steam 1 RUN: 0a0ce55d-5fc1-4447-ad17-a13c80a5cb15